fUSD/lending_fUSD_20250923
["ID","MTS","AMOUNT","RATE_DAILY","PERIOD"]
[387271648,1758670248823,-549.02,0.00024657,3]
[387271649,1758670248833,-400.0,0.00024657,3]
[387271650,1758670248842,-400.0,0.00024657,3]
[387271651,1758670248852,-686.86,0.00024657,3]
[387271652,1758670248861,-1502.34,0.00024657,3]
[387271653,1758670248871,-550.88,0.00024657,3]
[387271654,1758670248880,-648.44,0.00024657,3]
[387271655,1758670248889,-400.0,0.00024657,3]
[387271656,1758670248899,-1552.6,0.00024657,3]
[387271657,1758670248909,-2267.02,0.00024657,3]
[387271658,1758670248918,-1256.42,0.00024657,3]
[387271659,1758670248928,-400.0,0.00024657,3]
[387271660,1758670248937,-493.25019995,0.00024657,3]
[387271661,1758670248949,-416.96,0.00024657,3]
[387271662,1758670248959,-400.0,0.00024657,3]
[387271663,1758670248968,-400.0,0.00024657,3]
[387271664,1758670248981,-1492.74,0.00024657,3]
[387271665,1758670248990,-400.0,0.00024657,3]
[387271666,1758670249000,-400.0,0.00024657,3]
[387271667,1758670249009,-400.0,0.00024657,3]
[387271668,1758670249019,-1619.87,0.00024657,3]
[387271669,1758670249029,-664.89,0.00024657,3]
[387271670,1758670249038,-586.19,0.00024657,3]
[387271671,1758670249048,-1756.7,0.00024657,3]
[387271672,1758670249057,-400.0,0.00024657,3]
[387271673,1758670249071,-1890.22,0.00024657,3]
[387271674,1758670249081,-681.47,0.00024657,3]
[387271675,1758670249090,-968.06,0.00024657,3]
[387271676,1758670249100,-291.39590296,0.00024657,3]
[387271677,1758670249109,-403.39609632,0.00024657,3]
[387271678,1758670249119,-746.98,0.00024657,3]
[387271679,1758670249129,-400.0,0.00024657,3]
[387271680,1758670249138,-522.16,0.00024657,3]
[387271681,1758670249147,-400.0,0.00024657,3]
[387271682,1758670249156,-400.0,0.00024657,3]
[387271683,1758670249165,-400.0,0.00024657,3]
[387271684,1758670249174,-460.87,0.00024657,3]
[387271685,1758670249184,-400.0,0.00024657,3]
[387271686,1758670249194,-400.0,0.00024657,3]
[387271687,1758670249204,-400.0,0.00024657,3]
[387271688,1758670249214,-290.11013904,0.00024657,3]
[387271689,1758670249223,-400.0,0.00024657,3]
[387271690,1758670249233,-1315.83,0.00024657,3]
[387271691,1758670249242,-1437.62,0.00024657,3]
[387271692,1758670249252,-400.0,0.00024657,3]
[387271693,1758670249262,-1684.74,0.00024657,3]
[387271694,1758670249272,-400.0,0.00024657,3]
[387271695,1758670249282,-545.05,0.00024657,3]
[387271696,1758670249297,-400.0,0.00024657,3]
[387271697,1758670249307,-400.0,0.00024657,3]
[387271698,1758670249317,-972.86,0.00024657,3]
[387271699,1758670249326,-400.0,0.00024657,3]
[387271700,1758670249336,-1700.93,0.00024657,3]
[387271701,1758670249346,-400.0,0.00024657,3]
[387271702,1758670249357,-400.0,0.00024657,3]
[387271703,1758670249369,-944.81,0.00024657,3]
[387271704,1758670249379,-375.62430978,0.00024657,3]
[387271705,1758670249389,-1488.62,0.00024657,3]
[387271706,1758670249399,-1036.3,0.00024657,3]
[387271707,1758670249409,-400.0,0.00024657,3]
[387271708,1758670249418,-2232.04,0.00024657,3]
[387271709,1758670249428,-400.72995628,0.00024657,3]
[387271710,1758670249438,-400.0,0.00024657,3]
[387271711,1758670249448,-519.83323399,0.00024657,3]
[387271712,1758670249457,-545.36,0.00024657,3]
[387271713,1758670249467,-400.0,0.00024657,3]
[387271714,1758670249476,-400.0,0.00024657,3]
[387271715,1758670249486,-2699.85,0.00024657,3]
[387271716,1758670249496,-419.62,0.00024657,3]
[387271717,1758670249505,-400.0,0.00024657,3]
[387271718,1758670249517,-874.87,0.00024657,3]
[387271719,1758670249526,-500.0,0.00024657,9]
[387271720,1758670249536,-500.0,0.00024657,9]
[387271721,1758670249545,-500.0,0.00024657,9]
[387271722,1758670249555,-400.0,0.00024657,3]
[387271723,1758670249565,-500.0,0.00024657,9]
[387271724,1758670249575,-500.0,0.00024657,9]
[387271725,1758670249584,-500.0,0.00024657,9]
[387271726,1758670249594,-500.0,0.00024657,9]
[387271727,1758670249604,-400.0,0.00024657,3]
[387271728,1758670249616,-500.0,0.00024657,9]
[387271729,1758670249626,-1879.7,0.00024657,3]
[387271730,1758670249636,-1181.43,0.00024657,3]
[387271731,1758670249646,-2960.87,0.00024657,3]
[387271732,1758670249656,-1680.06,0.00024657,3]
[387271733,1758670249665,-1039.84,0.00024657,3]
[387271734,1758670249675,-644.84,0.00024657,3]
[387271735,1758670249686,-400.0,0.00024657,3]
[387271736,1758670249695,-4159.34,0.00024657,3]
[387271737,1758670249706,-400.0,0.00024657,3]
[387271738,1758670249716,-400.0,0.00024657,3]
[387271739,1758670249726,-400.0,0.00024657,3]
[387271740,1758670249735,-400.0,0.00024657,3]
[387271741,1758670249745,-743.59,0.00024657,3]
[387271742,1758670249754,-400.0,0.00024657,3]
[387271743,1758670249764,-400.0,0.00024657,3]
[387271744,1758670249774,-1566.28,0.00024657,3]
[387271745,1758670249783,-400.0,0.00024657,3]
[387271746,1758670249793,-1715.47,0.00024657,3]
[387271747,1758670249803,-400.0,0.00024657,3]
[387271748,1758670249812,-1549.38,0.00024657,3]
[387271749,1758670249822,-400.0,0.00024657,3]
[387271750,1758670249832,-400.0,0.00024657,3]
[387271751,1758670249841,-400.0,0.00024657,3]
[387271752,1758670249851,-400.0,0.00024657,3]
[387271753,1758670249861,-400.0,0.00024657,3]
[387271754,1758670249871,-400.0,0.00024657,3]
[387271755,1758670249880,-1384.37,0.00024657,3]
[387271756,1758670249890,-1363.43,0.00024657,3]
[387271757,1758670249900,-609.06,0.00024657,3]
[387271758,1758670249910,-2439.67,0.00024657,3]
[387271759,1758670249920,-400.0,0.00024657,3]
[387271760,1758670249930,-189.39839605,0.00024657,3]
[387271761,1758670249940,-752.93,0.00024657,3]
[387271762,1758670249949,-798.74,0.00024657,3]
[387271763,1758670249959,-400.0,0.00024657,3]
[387271764,1758670249979,-464.58,0.00024657,3]
[387271765,1758670249990,-2109.56,0.00024657,3]
[387271766,1758670250001,-400.0,0.00024657,3]
[387271767,1758670250011,-400.0,0.00024657,3]
[387271768,1758670250021,-400.0,0.00024657,3]
[387271769,1758670250032,-646.01,0.00024657,3]
[387271770,1758670250041,-400.0,0.00024657,3]
[387271771,1758670250052,-709.99,0.00024657,3]
[387271772,1758670250062,-400.0,0.00024657,3]
[387271773,1758670250073,-1119.4,0.00024657,3]
[387271774,1758670250083,-1617.36,0.00024657,3]
[387271775,1758670250092,-885.39,0.00024657,3]
[387271776,1758670250102,-2124.09,0.00024657,3]
[387271777,1758670250113,-672.57,0.00024657,3]
[387271778,1758670250123,-400.0,0.00024657,3]
[387271779,1758670250134,-400.0,0.00024657,3]
[387271780,1758670250144,-1675.68,0.00024657,3]
[387271781,1758670250154,-500.0,0.00024657,3]
[387271782,1758670250165,-500.0,0.00024657,3]
[387271783,1758670250175,-500.0,0.00024657,3]
[387271784,1758670250185,-967.42,0.00024657,3]
[387271785,1758670250195,-400.0,0.00024657,3]
[387271786,1758670250206,-1710.51,0.00024657,3]
[387271787,1758670250217,-2240.0,0.00024657,3]
[387271788,1758670250227,-2895.73,0.00024657,3]
[387271789,1758670250237,-400.0,0.00024657,3]
[387271790,1758670250247,-400.0,0.00024657,3]
[387271791,1758670250258,-2037.07,0.00024657,3]
[387271792,1758670250268,-400.0,0.00024657,3]
[387271793,1758670250278,-549.59,0.00024657,3]
[387271794,1758670250289,-607.88,0.00024657,3]
[387271795,1758670250299,-400.0,0.00024657,3]
[387271796,1758670250309,-550.64,0.00024657,3]
[387271797,1758670250320,-400.0,0.00024657,3]
[387271798,1758670250330,-1512.86,0.00024657,3]
[387271799,1758670250341,-400.0,0.00024657,3]
[387271800,1758670250355,-400.0,0.00024657,3]
[387271801,1758670250365,-431.99296256,0.00024657,3]
[387271802,1758670250376,-2882.82,0.00024657,3]
[387271803,1758670250387,-669.54,0.00024657,3]
[387271804,1758670250397,-1910.02,0.00024657,3]
[387271805,1758670250408,-400.0,0.00024657,3]
[387271806,1758670250419,-400.0,0.00024657,3]
[387271807,1758670250430,-1300.26,0.00024657,3]
[387271808,1758670250441,-1620.51,0.00024657,3]
[387271809,1758670250452,-539.01,0.00024657,3]
[387271810,1758670250463,-400.0,0.00024657,3]
[387271811,1758670250474,-400.0,0.00024657,3]
[387271812,1758670250485,-1623.04,0.00024657,3]
[387271813,1758670250497,-400.0,0.00024657,3]
[387271814,1758670250507,-788.89,0.00024657,3]
[387271815,1758670250518,-2501.23,0.00024657,3]
[387271816,1758670250529,-1792.1,0.00024657,3]
[387271817,1758670250540,-400.0,0.00024657,3]
[387271818,1758670250551,-400.0,0.00024657,3]
[387271819,1758670250562,-400.0,0.00024657,3]
[387271820,1758670250572,-400.0,0.00024657,3]
[387271821,1758670250583,-1070.68,0.00024657,3]
[387271822,1758670250594,-400.0,0.00024657,3]
[387271823,1758670250605,-503.06,0.00024657,3]
[387271824,1758670250618,-631.58,0.00024657,3]
[387271825,1758670250629,-1270.75,0.00024657,3]
[387271826,1758670250640,-400.0,0.00024657,3]
[387271827,1758670250650,-1583.1,0.00024657,3]
[387271828,1758670250662,-9895.64,0.00024657,3]
[387271829,1758670250672,-1150.45,0.00024657,3]
[387271830,1758670250683,-1543.26,0.00024657,3]
[387271831,1758670250694,-1471.96,0.00024657,3]
[387271832,1758670250705,-857.67,0.00024657,3]
[387271833,1758670250716,-8158.51,0.00024657,3]
[387271834,1758670250726,-1635.86,0.00024657,3]
[387271835,1758670250737,-400.0,0.00024657,3]
[387271836,1758670250747,-400.0,0.00024657,3]
[387271837,1758670250763,-855.41,0.00024657,3]
[387271838,1758670250775,-1740.8,0.00024657,3]
[387271839,1758670250787,-542.09,0.00024657,3]
[387271840,1758670250798,-522.4,0.00024657,3]
[387271841,1758670250810,-1734.32,0.00024657,3]
[387271842,1758670250821,-400.0,0.00024657,3]
[387271843,1758670250832,-1547.25,0.00024657,3]
[387271844,1758670250843,-400.0,0.00024657,3]
[387271845,1758670250854,-1693.76,0.00024657,3]
[387271846,1758670250865,-650.61,0.00024657,3]
[387271847,1758670250876,-400.0,0.00024657,3]
[387271848,1758670250886,-400.0,0.00024657,3]
[387271849,1758670250897,-760.53,0.00024657,3]
[387271850,1758670250908,-418.45,0.00024657,3]
[387271851,1758670250919,-1094.77,0.00024657,3]
[387271852,1758670250929,-206.65996309,0.00024657,3]
[387271853,1758670250939,-400.0,0.00024657,3]
[387271854,1758670250950,-400.75982837,0.00024657,3]
[387271855,1758670250961,-400.0,0.00024657,3]
[387271856,1758670250975,-400.0,0.00024657,3]
[387271857,1758670250986,-981.44,0.00024657,3]
[387271858,1758670250998,-2133.46,0.00024657,3]
[387271859,1758670251009,-400.0,0.00024657,3]
[387271860,1758670251020,-400.7811397,0.00024657,3]
[387271861,1758670251031,-735.62,0.00024657,3]
[387271862,1758670251042,-400.0,0.00024657,3]
[387271863,1758670251053,-400.0,0.00024657,3]
[387271864,1758670251065,-400.0,0.00024657,3]
[387271865,1758670251076,-452.73,0.00024657,3]
[387271866,1758670251087,-605.65,0.00024657,3]
[387271867,1758670251098,-400.0,0.00024657,3]
[387271868,1758670251108,-400.0,0.00024657,3]
[387271869,1758670251119,-424.94,0.00024657,3]
[387271870,1758670251130,-400.0,0.00024657,3]
[387271871,1758670251141,-400.0,0.00024657,3]
[387271872,1758670251152,-2498.14,0.00024657,3]
[387271873,1758670251163,-2966.79,0.00024657,3]
[387271874,1758670251174,-400.0,0.00024657,3]
[387271875,1758670251186,-400.0,0.00024657,3]
[387271876,1758670251200,-1010.22,0.00024657,3]
[387271877,1758670251211,-400.0,0.00024657,3]
[387271878,1758670251223,-770.35,0.00024657,3]
[387271879,1758670251234,-1143.06,0.00024657,3]
[387271880,1758670251244,-400.0,0.00024657,3]
[387271881,1758670251255,-400.0,0.00024657,3]
[387271882,1758670251266,-400.0,0.00024657,3]
[387271883,1758670251277,-400.0,0.00024657,3]
[387271884,1758670251287,-1704.82,0.00024657,3]
[387271885,1758670251298,-400.0,0.00024657,3]
[387271886,1758670251309,-494.13,0.00024657,3]
[387271887,1758670251320,-3072.93,0.00024657,3]
[387271888,1758670251331,-3771.54,0.00024657,3]
[387271889,1758670251343,-1075.99,0.00024657,3]
[387271890,1758670251353,-1488.96,0.00024657,3]
[387271891,1758670251363,-1563.24,0.00024657,3]
[387271892,1758670251374,-1222.54,0.00024657,3]
[387271893,1758670251385,-879.55,0.00024657,3]
[387271894,1758670251396,-400.0,0.00024657,3]
[387271895,1758670251406,-402.78,0.00024657,3]
[387271896,1758670251418,-400.0,0.00024657,3]
[387271897,1758670251429,-12498.25,0.00024657,3]
[387271898,1758670251439,-2005.38,0.00024657,3]
[387271899,1758670251450,-400.0,0.00024657,3]
[387271900,1758670251461,-400.0,0.00024657,3]
[387271901,1758670251472,-1629.08,0.00024657,3]
[387271902,1758670251483,-251.96032572,0.00024657,3]
[387271903,1758670251493,-1178.28,0.00024657,3]
[387271904,1758670251504,-3487.36,0.00024657,3]
[387271905,1758670251515,-1689.53,0.00024657,3]
[387271906,1758670251526,-400.0,0.00024657,3]
[387271907,1758670251537,-1998.67,0.00024657,3]
[387271908,1758670251547,-1854.41,0.00024657,3]
[387271909,1758670251558,-400.0,0.00024657,3]
[387271910,1758670251569,-1082.1,0.00024657,3]
[387271911,1758670251580,-433.73,0.00024657,3]
[387271912,1758670251590,-1803.8,0.00024657,3]
[387271913,1758670251601,-400.0,0.00024657,3]
[387271914,1758670251613,-400.0,0.00024657,3]
[387271915,1758670251625,-400.0,0.00024657,3]
[387271916,1758670251636,-2775.52,0.00024657,3]
[387271917,1758670251647,-2324.4,0.00024657,3]
[387271918,1758670251658,-1616.44,0.00024657,3]
[387271919,1758670252038,-400.0,0.00024657,3]
[387271920,1758670252092,-1614.05,0.00024657,3]
[387271921,1758670252103,-400.0,0.00024657,3]
[387271922,1758670252113,-537.69,0.00024657,3]
[387271923,1758670252122,-469.92,0.00024657,3]
[387271924,1758670252131,-400.0,0.00024657,3]
[387271925,1758670252141,-2418.62,0.00024657,3]
[387271926,1758670252150,-425.33,0.00024657,3]
[387271927,1758670252159,-541.59,0.00024657,3]
[387271928,1758670252169,-7092.05,0.00024657,3]
[387271929,1758670252178,-400.0,0.00024657,3]
[387271930,1758670252190,-1135.67,0.00024657,3]
[387271931,1758670252200,-2753.98,0.00024657,3]
[387271932,1758670252209,-555.25,0.00024657,3]
[387271933,1758670252220,-611.55,0.00024657,3]
[387271934,1758670252230,-753.26,0.00024657,3]
[387271935,1758670252239,-400.0,0.00024657,3]
[387271936,1758670252248,-400.0,0.00024657,3]
[387271937,1758670252258,-2013.52,0.00024657,3]
[387271938,1758670252267,-400.0,0.00024657,3]
[387271939,1758670252276,-400.0,0.00024657,3]
[387271940,1758670252286,-400.0,0.00024657,3]
[387271941,1758670252295,-1856.71,0.00024657,3]
[387271942,1758670252304,-1795.0,0.00024657,3]
[387271943,1758670252313,-400.0,0.00024657,3]
[387271944,1758670252324,-575.1,0.00024657,3]
[387271945,1758670252334,-1541.12,0.00024657,3]
[387271946,1758670252344,-400.0,0.00024657,3]
[387271947,1758670252353,-400.0,0.00024657,3]
[387271948,1758670252362,-2898.01,0.00024657,3]
[387271949,1758670252371,-400.0,0.00024657,3]
[387271950,1758670252381,-400.0,0.00024657,3]
[387271951,1758670252390,-1515.24,0.00024657,3]
[387271952,1758670252399,-400.0,0.00024657,3]
[387271953,1758670252409,-400.0,0.00024657,3]
[387271954,1758670252418,-1885.02,0.00024657,3]
[387271955,1758670252427,-400.0,0.00024657,3]
[387271956,1758670252437,-1496.22,0.00024657,3]
[387271957,1758670252446,-400.0,0.00024657,3]
[387271958,1758670252455,-400.0,0.00024657,3]
[387271959,1758670252465,-660.41,0.00024657,3]
[387271960,1758670252476,-567.85,0.00024657,3]
[387271961,1758670252485,-782.23,0.00024657,3]
[387271962,1758670252494,-460.79,0.00024657,3]
[387271963,1758670252505,-2923.79,0.00024657,3]
[387271964,1758670252516,-1564.45,0.00024657,3]
[387271965,1758670252526,-978.57,0.00024657,3]
[387271966,1758670252536,-1407.76,0.00024657,3]
[387271967,1758670252546,-844.1,0.00024657,3]
[387271968,1758670252555,-408.4359744,0.00024657,3]
[387271969,1758670252565,-400.0,0.00024657,3]
[387271970,1758670252574,-1501.98,0.00024657,3]
[387271971,1758670252584,-400.0,0.00024657,3]
[387271972,1758670252593,-400.0,0.00024657,3]
[387271973,1758670252603,-2341.95,0.00024657,3]
[387271974,1758670252614,-423.45,0.00024657,3]
[387271975,1758670252626,-400.0,0.00024657,3]
[387271976,1758670252635,-166.57879,0.00024657,3]
[387271977,1758670252645,-150.06902,0.00024657,3]
[387271978,1758670252654,-400.0,0.00024657,3]
[387271979,1758670252665,-174.717895,0.00024657,3]
[387271980,1758670252674,-400.0,0.00024657,3]
[387271981,1758670252684,-181.749417,0.00024657,3]
[387271982,1758670252696,-400.0,0.00024657,3]
[387271983,1758670252706,-1538.42,0.00024657,3]
[387271984,1758670252716,-1303.05,0.00024657,3]
[387271985,1758670252726,-400.0,0.00024657,3]
[387271986,1758670252735,-400.0,0.00024657,3]
[387271987,1758670252745,-1576.67,0.00024657,3]
[387271988,1758670252754,-1192.47,0.00024657,3]
[387271989,1758670252764,-400.0,0.00024657,3]
[387271990,1758670252773,-167.265379,0.00024657,3]
[387271991,1758670252784,-4267.67,0.00024657,3]
[387271992,1758670252794,-400.0,0.00024657,3]
[387271993,1758670252804,-400.0,0.00024657,3]
[387271994,1758670252815,-1114.8,0.00024657,3]
[387271995,1758670252824,-158.412683,0.00024657,3]
[387271996,1758670252834,-400.0,0.00024657,3]
[387271997,1758670252843,-400.0,0.00024657,3]
[387271998,1758670252852,-2034.71,0.00024657,3]
[387271999,1758670252862,-400.0,0.00024657,3]
[387272000,1758670252882,-2915.92,0.00024657,3]
[387272001,1758670252894,-1827.21,0.00024657,3]
[387272002,1758670252904,-1871.59,0.00024657,3]
[387272003,1758670252914,-400.0,0.00024657,3]
[387272004,1758670252924,-2105.13,0.00024657,3]
[387272005,1758670252933,-400.0,0.00024657,3]
[387272006,1758670252943,-400.0,0.00024657,3]
[387272007,1758670252954,-603.82,0.00024657,3]
[387272008,1758670252964,-1701.12,0.00024657,3]
[387272009,1758670252973,-2140.62,0.00024657,3]
[387272010,1758670252983,-400.0,0.00024657,3]
[387272011,1758670252993,-400.0,0.00024657,3]
[387272012,1758670253003,-400.0,0.00024657,3]
[387272013,1758670253012,-2120.35,0.00024657,3]
[387272014,1758670253022,-400.0,0.00024657,3]
[387272015,1758670253032,-4386.85,0.00024657,3]
[387272016,1758670253041,-1015.7,0.00024657,3]
[387272017,1758670253051,-554.77,0.00024657,3]
[387272018,1758670253060,-400.0,0.00024657,3]
[387272019,1758670253069,-1582.5,0.00024657,3]
[387272020,1758670253079,-400.0,0.00024657,3]
[387272021,1758670253088,-2136.66,0.00024657,3]
[387272022,1758670253097,-400.0,0.00024657,3]
[387272023,1758670253107,-400.0,0.00024657,3]
[387272024,1758670253116,-572.21,0.00024657,3]
[387272025,1758670253127,-1534.77,0.00024657,3]
[387272026,1758670253136,-400.0,0.00024657,3]
[387272027,1758670253145,-510.88,0.00024657,3]
[387272028,1758670253154,-400.0,0.00024657,3]
[387272029,1758670253163,-4490.61,0.00024657,3]
[387272030,1758670253173,-400.0,0.00024657,3]
[387272031,1758670253181,-400.0,0.00024657,3]
[387272032,1758670253191,-6639.86,0.00024657,3]
[387272033,1758670253200,-1767.79,0.00024657,3]
[387272034,1758670253209,-400.0,0.00024657,3]
[387272035,1758670253218,-400.0,0.00024657,3]
[387272036,1758670253227,-476.32,0.00024657,3]
[387272037,1758670253237,-2572.82,0.00024657,3]
[387272038,1758670253246,-9354.93,0.00024657,3]
[387272039,1758670253256,-509.52,0.00024657,3]
[387272040,1758670253265,-400.0,0.00024657,3]
[387272041,1758670253274,-400.0,0.00024657,3]
[387272042,1758670253283,-400.0,0.00024657,3]
[387272043,1758670253293,-500.0,0.00024657,3]
[387272044,1758670253302,-512.06680994,0.00024657,3]
[387272045,1758670253312,-500.0,0.00024657,3]
[387272046,1758670253321,-782.34,0.00024657,3]
[387272047,1758670253330,-400.0,0.00024657,3]
[387272048,1758670253339,-500.0,0.00024657,3]
[387272049,1758670253348,-1129.59,0.00024657,3]
[387272050,1758670253358,-1553.66,0.00024657,3]
[387272051,1758670253367,-525.7,0.00024657,3]
[387272052,1758670253376,-400.0,0.00024657,3]
[387272053,1758670253385,-400.0,0.00024657,3]
[387272054,1758670253394,-12300.4,0.00024657,3]
[387272055,1758670253404,-1238.72,0.00024657,3]
[387272056,1758670253413,-1572.09,0.00024657,3]
[387272057,1758670253423,-1100.75,0.00024657,3]
[387272058,1758670253432,-400.0,0.00024657,3]
[387272059,1758670253442,-7152.44,0.00024657,3]
[387272060,1758670253451,-400.0,0.00024657,3]
[387272061,1758670253460,-2211.14,0.00024657,3]
[387272062,1758670253470,-541.07,0.00024657,3]
[387272063,1758670253479,-519.12,0.00024657,3]
[387272064,1758670253488,-400.0,0.00024657,3]
[387272065,1758670253498,-820.83,0.00024657,3]
[387272066,1758670253508,-400.0,0.00024657,3]
[387272067,1758670253517,-400.0,0.00024657,3]
[387272068,1758670253526,-400.0,0.00024657,3]
[387272069,1758670253535,-400.0,0.00024657,3]
[387272070,1758670253545,-1721.97,0.00024657,3]
[387272071,1758670253554,-957.67,0.00024657,3]
[387272072,1758670253564,-400.0,0.00024657,3]
[387272073,1758670253573,-2833.5,0.00024657,3]
[387272074,1758670253583,-412.0,0.00024657,3]
[387272075,1758670253592,-467.8,0.00024657,3]
[387272076,1758670253602,-1443.83,0.00024657,3]
[387272077,1758670253612,-1982.5,0.00024657,3]
[387272078,1758670253625,-400.0,0.00024657,3]
[387272079,1758670253635,-2924.86,0.00024657,3]
[387272080,1758670253645,-400.0,0.00024657,3]
[387272081,1758670253654,-785.12,0.00024657,3]
[387272082,1758670253663,-400.0,0.00024657,3]
[387272083,1758670253673,-783.1,0.00024657,3]
[387272084,1758670253682,-355.64678245,0.00024657,3]
[387272085,1758670253692,-1727.43,0.00024657,3]
[387272086,1758670253702,-500.0,0.00024657,2]
[387272087,1758670253712,-3183.12,0.00024657,3]
[387272088,1758670253721,-400.0,0.00024657,3]
[387272089,1758670253731,-400.0,0.00024657,3]
[387272090,1758670253740,-400.0,0.00024657,3]
[387272091,1758670253749,-905.51,0.00024657,3]
[387272092,1758670253758,-608.41,0.00024657,3]
[387272093,1758670253768,-6623.04,0.00024657,3]
[387272094,1758670253777,-1185.52,0.00024657,3]
[387272095,1758670253793,-889.61,0.00024657,3]
[387272096,1758670253802,-1265.36,0.00024657,3]
[387272097,1758670253811,-2172.25,0.00024657,3]
[387272098,1758670253821,-400.0,0.00024657,3]
[387272099,1758670253830,-400.0,0.00024657,3]
[387272100,1758670253839,-1057.15,0.00024657,3]
[387272101,1758670253849,-1047.22,0.00024657,3]
[387272102,1758670253858,-5290.87,0.00024657,3]
[387272103,1758670253868,-1935.39,0.00024657,3]
[387272104,1758670253879,-400.0,0.00024657,3]
[387272105,1758670253888,-1628.02,0.00024657,3]
[387272106,1758670253898,-1844.21,0.00024657,3]
[387272107,1758670253908,-400.0,0.00024657,3]
[387272108,1758670253917,-400.0,0.00024657,3]
[387272109,1758670253927,-6354.25,0.00024657,3]
[387272110,1758670253936,-400.0,0.00024657,3]
[387272111,1758670253946,-709.09,0.00024657,3]
[387272112,1758670253956,-400.0,0.00024657,3]
[387272113,1758670253965,-400.0,0.00024657,3]
[387272114,1758670253974,-766.58,0.00024657,3]
[387272115,1758670253984,-1501.55,0.00024657,3]
[387272116,1758670253993,-400.0,0.00024657,3]
[387272117,1758670254003,-2142.41,0.00024657,3]
[387272118,1758670254012,-771.42,0.00024657,3]
[387272119,1758670254021,-1642.51,0.00024657,3]
[387272120,1758670254031,-1584.34,0.00024657,3]
[387272121,1758670254040,-1141.35,0.00024657,3]
[387272122,1758670254050,-2914.74,0.00024657,3]
[387272123,1758670254059,-400.0,0.00024657,3]
[387272124,1758670254069,-2273.23,0.00024657,3]
[387272125,1758670254078,-1800.09,0.00024657,3]
[387272126,1758670254087,-3291.35,0.00024657,3]
[387272127,1758670254096,-400.0,0.00024657,3]
[387272128,1758670254106,-683.52,0.00024657,3]
[387272129,1758670254115,-400.0,0.00024657,3]
[387272130,1758670254125,-1159.55,0.00024657,3]
[387272131,1758670254134,-2167.21,0.00024657,3]
[387272132,1758670254144,-1262.4,0.00024657,3]
[387272133,1758670254153,-1775.97,0.00024657,3]
[387272134,1758670254163,-419.3,0.00024657,3]
[387272135,1758670254172,-400.0,0.00024657,3]
[387272136,1758670254182,-637.92,0.00024657,3]
[387272137,1758670254191,-400.0,0.00024657,3]
[387272138,1758670254201,-2335.74,0.00024657,3]
[387272139,1758670254211,-3262.9,0.00024657,3]
[387272140,1758670254220,-697.37,0.00024657,3]
[387272141,1758670254229,-492.6,0.00024657,3]
[387272142,1758670254239,-400.0,0.00024657,3]
[387272143,1758670254247,-2076.21,0.00024657,3]
[387272144,1758670254257,-1360.26,0.00024657,3]
[387272145,1758670254266,-833.38,0.00024657,3]
[387272146,1758670254276,-400.0,0.00024657,3]
[387272147,1758670254285,-500.0,0.00024657,3]